bitfinex/quotes_ETHUSD_20240924
["timestamp","ask_amount","ask_price","bid_price","bid_amount"]
[1727164623532,1.18597289,2652.5,2652.4,3.77017]
[1727164623701,1.18597289,2652.5,2652.4,5.23125948]
[1727164624101,1.29104585,2652.7,2652.6,3.76988]
[1727164626401,0.7643,2653.0,2652.8,3.76959]
[1727164628841,0.7643,2653.0,2652.6,3.76978]
[1727164629167,0.7643,2653.0,2652.8,3.76953]
[1727164632217,0.7643,2653.0,2652.8,7.53905]
[1727164632551,0.7643,2653.0,2652.8,7.53904]
[1727164632945,0.7643,2653.0,2652.8,3.76952]
[1727164633474,0.7643,2653.0,2652.9,3.76945]
[1727164633676,0.7643,2653.0,2652.8,3.76952]
[1727164633975,0.7643,2653.0,2652.8,7.53904]
[1727164634176,0.7643,2653.0,2652.8,3.76952]
[1727164635646,2.90599938,2652.9,2652.8,7.53905]
[1727164635949,2.90599938,2652.9,2652.8,3.76952]
[1727164637465,5.88283867,2652.9,2652.7,3.76972]
[1727164637781,5.27855334,2652.8,2652.7,3.76972]
[1727164638145,0.7643,2652.7,2652.5,3.76993]
[1727164638347,4.883224,2652.6,2652.5,3.76993]
[1727164640288,4.883224,2652.6,2652.4,5.21135686]
[1727164640289,4.883224,2652.6,2652.4,3.77015]
[1727164640503,2.90599938,2652.5,2652.4,3.77015]
[1727164640714,3.59178177,2652.5,2652.4,3.77015]
[1727164642470,1.61453886,2652.5,2652.3,3.77019]
[1727164642665,4.88351924,2652.4,2652.3,3.77019]
[1727164642867,3.59196396,2652.4,2652.3,3.77019]
[1727164643706,2.90609414,2652.4,2652.3,3.77019]
[1727164644063,1.61453886,2652.4,2652.3,3.77019]
[1727164649639,2.90609414,2652.4,2652.3,3.77019]
[1727164649924,1.61453886,2652.4,2652.3,3.77019]
[1727164650131,2.90609414,2652.4,2652.3,3.77019]
[1727164650329,1.61453886,2652.4,2652.3,3.77019]
[1727164650496,1.29155528,2652.4,2652.3,3.77019]
[1727164650827,1.61529425,2652.4,2652.3,3.77019]
[1727164651032,2.90684953,2652.4,2652.3,3.77019]
[1727164651256,3.69964953,2652.4,2652.2,5.21163686]
[1727164651407,0.7928,2652.4,2652.3,3.77031]
[1727164651597,3.70065164,2652.4,2652.3,3.77031]
[1727164651805,6.0744502,2652.4,2652.3,3.77031]
[1727164652151,4.58503983,2652.4,2652.1,3.77052]
[1727164652304,5.28188238,2652.3,2652.1,3.77052]
[1727164652503,2.90785164,2652.2,2652.1,3.77052]
[1727164655047,2.90785164,2652.2,2652.0,1.44120686]
[1727164655203,2.90785164,2652.1,2651.7,0.7682]
[1727164655408,2.90785164,2652.1,2651.9,3.77088]
[1727164655409,4.88617223,2652.0,2651.9,3.77088]
[1727164655609,2.90785164,2652.0,2651.8,3.77088]
[1727164655917,0.7928,2652.1,2651.8,3.77088]
[1727164655918,2.90785164,2651.9,2651.8,3.77088]
[1727164656741,1.61547313,2651.9,2651.8,3.77088]
[1727164656943,0.7928,2651.6,2651.1,3.772]
[1727164657151,1.97868567,2651.3,2650.9,5.21339686]
[1727164657361,1.97868567,2651.3,2650.8,0.8065633]
[1727164657362,3.19732175,2651.2,2651.1,1.44120686]
[1727164657538,3.1974118,2651.2,2651.1,1.44120686]
[1727164657913,4.48979031,2651.2,2651.1,5.21321686]
[1727164658233,3.1974118,2651.2,2651.1,5.21321686]
[1727164658531,4.48979031,2651.2,2651.1,5.21321686]
[1727164659109,3.1974118,2651.2,2651.1,5.21321686]
[1727164659313,2.90785164,2651.2,2651.1,5.21321686]
[1727164659723,4.48979031,2651.2,2651.1,5.21321686]
[1727164659927,2.90785164,2651.2,2651.1,5.21321686]
[1727164660122,1.29237851,2651.2,2651.1,5.21321686]
[1727164660349,2.15244788,2651.2,2651.1,5.21321686]
[1727164660516,2.79761817,2651.2,2651.1,5.21321686]
[1727164660715,2.15244788,2651.2,2651.1,5.21321686]
[1727164661019,1.18469245,2651.2,2651.1,5.21321686]
[1727164661220,2.15244788,2651.2,2651.1,5.21321686]
[1727164661430,2.79761817,2651.2,2651.1,5.21321686]
[1727164661616,2.15244788,2651.2,2651.1,5.21321686]
[1727164661959,0.78943195,2651.2,2651.1,5.21321686]
[1727164662361,2.40235767,2651.2,2651.1,5.21321686]
[1727164663057,1.61292572,2651.2,2651.1,5.21321686]
[1727164663254,1.75672927,2651.2,2651.1,5.21321686]
[1727164663630,0.78897384,2651.2,2651.1,5.21321686]
[1727164663954,1.75672927,2651.2,2651.1,5.21321686]
[1727164665054,0.78897384,2651.2,2651.1,5.21321686]
[1727164665218,2.39898269,2651.2,2651.1,1.44120686]
[1727164665412,1.75497915,2651.2,2651.0,3.77216]
[1727164665651,2.39898269,2651.2,2651.0,3.77216]
[1727164665952,0.64389087,2651.1,2651.0,3.77216]
[1727164666152,2.398702,2651.2,2651.0,3.77216]
[1727164666357,2.398702,2651.2,2650.9,5.21349686]
[1727164666358,0.78897384,2651.2,2650.9,5.21349686]
[1727164666562,0.78897384,2651.1,2650.9,3.77229]
[1727164666782,2.39850072,2651.1,2650.9,3.7723]
[1727164666931,2.39850072,2651.0,2650.8,3.8107533]
[1727164667135,0.6438004,2650.9,2650.8,3.8107533]
[1727164667432,0.64366362,2650.9,2650.8,3.8107533]
[1727164667744,0.78897384,2651.0,2650.8,3.8107533]
[1727164668262,0.78897384,2651.0,2650.8,7.5831033]
[1727164668646,0.78897384,2651.0,2650.8,3.8107133]
[1727164669146,0.78897384,2651.1,2651.0,3.77216]
[1727164669326,0.64347464,2651.1,2651.0,3.77216]
[1727164669532,1.43244848,2651.2,2651.0,3.77216]
[1727164669730,0.64347464,2651.1,2651.0,3.77216]
[1727164669963,0.64333198,2651.1,2651.0,3.77216]
[1727164670168,1.43230582,2651.2,2651.0,3.77216]
[1727164671869,1.43230582,2651.2,2651.1,5.21321686]
[1727164672028,0.78897384,2651.5,2651.2,3.7718]
[1727164672231,2.39675641,2651.5,2651.2,3.77179]
[1727164672529,0.78897384,2651.5,2651.3,5.21292686]
[1727164672751,1.75361798,2651.5,2651.3,5.21292686]
[1727164672975,0.78897384,2651.5,2651.3,5.21292686]
[1727164673476,1.43206926,2651.5,2651.3,5.21292686]
[1727164673658,0.78897384,2651.5,2651.3,5.21292686]
[1727164674059,1.43208586,2651.5,2651.3,5.21292686]
[1727164674230,0.64312688,2651.4,2651.3,3.77172]
[1727164674573,1.43210072,2651.5,2651.3,3.77172]
[1727164674781,0.64312712,2651.4,2651.3,3.77172]
[1727164675277,1.43210096,2651.5,2651.3,3.77172]
[1727164675478,0.64312712,2651.4,2651.3,3.77172]
[1727164675774,0.64312712,2651.4,2651.2,3.7718]
[1727164675959,0.64318413,2651.3,2651.2,3.7718]
[1727164676170,0.78897384,2651.5,2651.1,5.21310686]
[1727164676374,2.39688526,2651.4,2651.1,5.21310686]
[1727164676674,1.44090958,2651.3,2651.2,3.77179]
[1727164677477,2.40577496,2651.3,2651.2,3.77179]
[1727164678433,3.1947488,2651.3,2651.2,3.77179]
[1727164679892,3.19503576,2651.3,2651.2,3.77179]
[1727164680052,2.39733576,2651.3,2651.2,3.77179]
[1727164680263,1.75399099,2651.3,2651.2,3.77179]
[1727164680596,0.64334477,2651.3,2651.2,3.77179]
[1727164680752,1.43231861,2651.4,2651.2,3.77179]
[1727164681094,0.78897384,2651.4,2651.2,3.77179]
[1727164681750,0.78897384,2651.4,2651.3,3.77173]
[1727164681952,2.39752036,2651.4,2651.3,3.77173]
[1727164682153,1.75415833,2651.4,2651.3,3.77173]
[1727164682851,2.7937067,2651.4,2651.2,3.77185]
[1727164683055,2.39720817,2651.3,2651.2,3.77185]
[1727164683301,1.75360247,2651.3,2651.2,3.77185]
[1727164683456,0.78819392,2651.3,2651.2,3.77185]
[1727164683854,2.39726835,2651.3,2651.2,3.77185]
[1727164684052,1.75366265,2651.3,2651.2,3.77185]
[1727164684380,0.7882541,2651.3,2651.2,3.77185]
[1727164684902,1.75366265,2651.3,2651.2,3.77185]
[1727164685249,1.60901425,2651.3,2651.2,3.77185]
[1727164685542,0.96540855,2651.3,2651.2,3.77185]
[1727164686256,2.150101,2651.3,2651.2,3.77185]
[1727164686784,2.39768812,2651.3,2651.2,3.77185]
[1727164687185,0.6436057,2651.3,2651.2,5.97385686]
[1727164687360,1.60983096,2651.3,2651.2,5.97385686]
[1727164687560,0.78867387,2651.4,2651.3,3.77173]
[1727164687786,1.75487652,2651.4,2651.3,3.77173]
[1727164688303,2.39901162,2651.4,2651.3,3.77173]
[1727164688756,1.75487652,2651.4,2651.3,3.77173]
[1727164689158,0.78867387,2651.4,2651.3,3.77173]
[1727164689370,1.75487652,2651.4,2651.3,3.77173]
[1727164689773,1.18469245,2651.4,2651.3,3.77173]
[1727164690002,2.7950302,2651.4,2651.3,3.77173]
[1727164690275,2.1508951,2651.4,2651.3,3.77173]
[1727164690576,2.79573275,2651.4,2651.3,3.77173]
[1727164690775,2.15131663,2651.4,2651.3,3.77173]
[1727164691477,2.79573275,2651.4,2651.3,3.77173]
[1727164692314,0.64441612,2651.4,2651.3,3.77173]
[1727164692512,1.8287672,2651.4,2651.3,3.77173]
[1727164692699,1.18435108,2651.4,2651.3,3.77173]
[1727164692903,2.1514576,2651.4,2651.3,3.77173]
[1727164693379,2.79650898,2651.4,2651.3,3.77173]
[1727164693923,1.58193867,2651.5,2651.4,0.55]
[1727164693924,0.78974458,2651.5,2651.4,0.55]
[1727164694105,0.78974458,2651.9,2651.8,3.77102]
[1727164694425,1.18466478,2651.9,2651.8,3.77102]
[1727164694585,1.82953352,2651.9,2651.8,3.77102]
[1727164695097,2.90213036,2651.9,2651.8,3.77102]
[1727164695420,3.19411052,2651.9,2651.8,3.77102]
[1727164696578,4.48406903,2651.9,2651.8,3.77102]
[1727164697131,3.19411052,2651.9,2651.8,3.77102]
[1727164697340,3.19484648,2651.9,2651.8,3.77102]
[1727164697618,4.48480499,2651.9,2651.8,3.77102]
[1727164697820,3.19484648,2651.9,2651.8,3.77102]
[1727164698299,2.90286632,2651.9,2651.8,3.77102]
[1727164698505,1.61290781,2651.9,2651.8,3.77102]
[1727164699087,1.61290781,2651.9,2651.7,3.77107]
[1727164699308,3.19326232,2651.8,2651.7,3.77107]
[1727164699611,4.48322083,2651.8,2651.7,3.77107]
[1727164700594,3.19326232,2651.8,2651.7,3.77107]
[1727164702224,3.19407589,2651.8,2651.7,3.77107]
[1727164704034,4.4840344,2651.8,2651.7,3.77107]
[1727164704349,2.90367989,2651.8,2651.7,3.77107]
[1727164704727,1.61372138,2651.8,2651.7,3.77107]
[1727164705307,3.19407589,2651.8,2651.7,3.77107]
[1727164706342,4.4840344,2651.8,2651.7,3.77107]
[1727164706555,3.19407589,2651.8,2651.7,3.77107]
[1727164707042,2.22556906,2651.8,2651.7,3.77107]
[1727164707262,3.19339089,2651.8,2651.7,3.77107]
[1727164707421,2.93011509,2651.8,2651.4,3.77146]
[1727164707619,1.1851271,2651.5,2651.4,3.77146]
[1727164707942,3.19320585,2651.5,2651.4,5.21266686]
[1727164708240,2.90299489,2651.5,2651.4,5.21266686]
[1727164708452,1.61303638,2651.5,2651.4,5.21266686]
[1727164708622,2.7981641,2651.5,2651.4,5.21266686]
[1727164709039,1.61303638,2651.5,2651.4,5.21266686]
[1727164709554,1.83036916,2651.5,2651.4,5.21266686]
[1727164709848,2.79819099,2651.5,2651.4,5.21266686]
[1727164710843,2.79819099,2651.5,2651.4,4.53536]
[1727164711060,2.79819099,2651.5,2651.4,6.80727386]
[1727164711703,1.18515461,2651.5,2651.4,6.80727386]
[1727164711940,2.79810043,2651.5,2651.4,6.80727386]
[1727164712332,2.40310715,2651.5,2651.4,6.80727386]
[1727164712732,0.64517833,2651.5,2651.4,6.80727386]
[1727164712938,0.79016133,2651.6,2651.5,3.77145]
[1727164713243,0.64522556,2651.6,2651.5,5.20649339]
[1727164713456,1.18515461,2651.8,2651.6,3.7713]
[1727164713635,1.83042269,2651.8,2651.7,5.97626686]
[1727164713819,2.79832119,2651.8,2651.7,5.97626686]
[1727164714016,2.40343823,2651.8,2651.7,5.97626686]
[1727164714217,2.40343823,2651.8,2651.7,7.47167288]
[1727164716247,1.61316658,2651.8,2651.7,7.47167288]
[1727164716407,2.79832119,2651.8,2651.7,7.47167288]
[1727164716810,1.61316658,2651.8,2651.7,7.47167288]
[1727164717247,1.83042662,2651.8,2651.7,7.47167288]
[1727164717555,2.40352927,2651.8,2651.7,7.47167288]
[1727164718055,1.4356347,2651.8,2651.7,7.47167288]
[1727164718414,2.79832119,2651.8,2651.7,7.47167288]
[1727164718614,1.61316658,2651.8,2651.7,7.47167288]
[1727164718926,1.43560052,2651.8,2651.7,3.77116]
[1727164719253,2.79832119,2651.8,2651.7,5.21236686]
[1727164721460,1.18515461,2651.8,2651.7,5.21236686]
[1727164721763,2.79848413,2651.8,2651.7,5.21236686]
[1727164723332,2.79897596,2651.8,2651.7,5.21236686]
[1727164726225,2.79897596,2651.8,2651.7,6.18712355]
[1727164726461,2.79994922,2651.8,2651.7,6.18712355]
[1727164728367,2.79994922,2651.8,2651.7,5.21236686]
[1727164728867,2.79994922,2651.8,2651.7,6.00146686]
[1727164730252,1.61430278,2651.8,2651.7,6.00146686]
[1727164730632,2.40536729,2651.8,2651.7,6.00146686]
[1727164731023,1.61430278,2651.8,2651.7,6.00146686]
[1727164731227,2.80078757,2651.8,2651.7,6.00146686]
[1727164732030,1.83170289,2651.8,2651.7,6.00146686]
[1727164732264,2.80078757,2651.8,2651.7,6.00146686]
[1727164733329,2.90747554,2651.8,2651.7,6.00146686]
[1727164733631,4.48780122,2651.8,2651.7,6.00146686]
[1727164733863,2.90764961,2651.8,2651.7,6.00146686]
[1727164734067,3.1953106,2651.8,2651.7,6.00146686]
[1727164734271,3.1953106,2651.8,2651.7,5.21236686]
[1727164734479,3.1953106,2651.8,2651.7,3.77116]
[1727164734666,4.88563568,2651.8,2651.7,3.77116]
[1727164734982,3.5931272,2651.8,2651.7,3.77116]
[1727164735471,4.88563568,2651.8,2651.7,3.77116]
[1727164736055,3.5931272,2651.8,2651.7,3.77116]
[1727164736261,2.90869196,2651.8,2651.7,3.77116]
[1727164737080,3.59553214,2651.8,2651.7,3.77116]
[1727164737279,2.90869196,2651.8,2651.7,3.77116]
[1727164737492,1.61618348,2651.8,2651.7,3.77116]
[1727164737792,3.69959196,2651.8,2651.7,3.77116]
[1727164738001,4.30706226,2651.8,2651.7,3.77116]
[1727164738791,0.7909,2651.7,2651.5,3.77142]
[1727164738949,5.28448012,2651.6,2651.5,3.77142]
[1727164739151,2.90869196,2651.6,2651.5,3.77142]
[1727164740487,2.90869196,2651.6,2651.4,5.21279686]
[1727164740788,2.90869196,2651.5,2651.4,5.21279686]
[1727164740948,5.28419158,2651.5,2651.4,5.21279686]
[1727164741144,6.09419158,2651.5,2651.4,3.77159]
[1727164742299,6.09358218,2651.5,2651.4,3.77159]
[1727164742673,6.09358218,2651.5,2651.3,3.77164]
[1727164742866,0.81,2651.5,2651.4,3.77159]
[1727164743078,7.04025256,2651.5,2651.4,3.77159]
[1727164743272,7.04025256,2651.5,2651.2,3.77186]
[1727164743591,6.88587953,2651.4,2651.2,3.77186]
[1727164743794,2.89860459,2651.3,2651.2,3.77186]
[1727164744505,2.89826299,2651.3,2651.2,3.77186]
[1727164746297,1.60999428,2651.3,2651.2,5.21306686]
[1727164746874,3.19181517,2651.3,2651.2,5.21306686]
[1727164747299,4.48002135,2651.3,2651.2,5.21306686]
[1727164747464,2.89826299,2651.3,2651.2,5.21306686]
[1727164747801,1.60999428,2651.3,2651.2,5.21306686]
[1727164747959,3.19172311,2651.3,2651.2,5.21306686]
[1727164749097,3.19172311,2651.3,2651.2,5.97526686]
[1727164749420,2.79504755,2651.3,2651.2,5.97526686]
[1727164749570,2.79503518,2651.3,2651.2,6.94999355]
[1727164749972,1.6088739,2651.3,2651.2,6.94999355]
[1727164750171,2.39969303,2651.3,2651.2,6.94999355]
[1727164750393,1.6088739,2651.3,2651.2,6.94999355]
[1727164750804,1.43434633,2651.3,2651.2,6.94999355]
[1727164752313,1.6088739,2651.3,2651.2,6.94999355]
[1727164754320,1.60908685,2651.3,2651.2,6.94999355]
[1727164755107,2.39996313,2651.3,2651.2,6.94999355]
[1727164758689,2.39988391,2651.3,2651.2,6.94999355]
[1727164759180,1.28716113,2651.7,2651.2,6.94999355]
[1727164759409,1.28716113,2651.7,2651.6,5.21250686]
[1727164759612,1.6089522,2651.7,2651.6,5.21250686]
[1727164759814,2.89611333,2651.7,2651.6,5.21250686]
[1727164764242,2.89599793,2651.7,2651.6,5.21250686]
[1727164769114,1.28716113,2651.7,2651.6,5.21250686]
[1727164769429,2.89577776,2651.7,2651.6,5.21250686]
[1727164769624,1.60861663,2651.7,2651.6,5.21250686]
[1727164769933,2.89577776,2651.7,2651.6,5.21250686]
[1727164770425,1.60861663,2651.7,2651.6,5.21250686]
[1727164770630,2.89577776,2651.7,2651.6,5.21250686]
[1727164774051,2.89647059,2651.7,2651.6,5.21250686]
[1727164774941,5.26946461,2651.7,2651.6,3.7713]
[1727164775131,2.89647059,2651.7,2651.6,3.7713]
[1727164775337,5.26946461,2651.7,2651.6,3.7713]
[1727164776764,2.89647059,2651.7,2651.6,3.7713]
[1727164777409,5.26946461,2651.7,2651.6,5.21250686]
[1727164777740,4.87507244,2651.7,2651.6,6.11090055]
[1727164777963,2.79657241,2651.7,2651.6,6.87900055]
[1727164778311,1.60930946,2651.7,2651.6,6.87900055]
[1727164778654,2.79666188,2651.7,2651.6,6.87900055]
[1727164779142,2.79782675,2651.7,2651.6,6.87900055]
[1727164779314,2.89885312,2651.7,2651.6,6.87900055]
[1727164779524,2.79787628,2651.7,2651.6,7.25879766]
[1727164780765,1.61047433,2651.7,2651.6,6.87900055]
[1727164781329,2.40196111,2651.7,2651.6,6.87900055]
[1727164781830,2.40196111,2651.7,2651.6,7.25877383]
[1727164782250,2.40196111,2651.7,2651.6,6.87900055]
[1727164782433,2.40196111,2651.7,2651.6,7.25878063]
[1727164783241,1.61047433,2651.7,2651.6,7.25878063]
[1727164783468,0.64418973,2651.7,2651.6,7.25878063]
[1727164783760,0.64418973,2651.7,2651.6,7.33419875]
[1727164783966,0.79148678,2651.8,2651.7,3.77116]
[1727164784124,2.40128438,2651.8,2651.7,5.25883888]
[1727164785654,1.75736534,2651.8,2651.7,5.25883888]
[1727164785861,2.40128438,2651.8,2651.7,5.25883888]
[1727164786038,1.75736534,2651.8,2651.7,5.25883888]
[1727164786366,2.40128438,2651.8,2651.7,5.25883888]
[1727164786748,1.75736534,2651.8,2651.7,5.25883888]
[1727164786963,2.40128438,2651.8,2651.7,5.25883888]
[1727164787332,1.6097976,2651.8,2651.7,5.25883888]
[1727164788372,0.64391904,2651.8,2651.7,5.25883888]
[1727164788673,1.43540582,2651.9,2651.7,5.25883888]
[1727164788836,0.79148678,2651.9,2651.8,6.37414944]
[1727164789191,1.43499422,2651.9,2651.8,6.37414944]
[1727164789468,2.40025538,2651.9,2651.8,6.37414944]
[1727164791436,1.6087686,2651.9,2651.8,6.37414944]
[1727164791629,2.39945608,2651.9,2651.8,6.37414944]
[1727164791834,1.6087686,2651.9,2651.8,6.37414944]
[1727164792047,1.6087686,2651.9,2651.8,5.21222686]
[1727164792442,1.43414285,2651.9,2651.8,5.21222686]
[1727164792649,1.6087686,2651.9,2651.8,5.21222686]
[1727164793779,1.60871928,2651.9,2651.8,5.21222686]
[1727164797059,1.43413114,2651.9,2651.8,5.21222686]
[1727164797238,2.39936271,2651.9,2651.8,5.21222686]
[1727164798279,2.39936271,2651.9,2651.8,6.18737555]
[1727164798872,2.39878596,2651.9,2651.8,6.18737555]
[1727164799076,0.64325701,2651.9,2651.8,6.97597555]
[1727164799383,1.43390044,2652.0,2651.8,7.0513881]
[1727164799676,0.64325701,2651.9,2651.8,7.0513881]
[1727164799971,1.43390044,2652.0,2651.8,7.0513881]
[1727164800179,0.8291,2652.3,2651.8,7.0513881]
[1727164800180,0.8291,2652.3,2652.2,3.77045]
[1727164800342,0.8291,2652.3,2652.2,5.21165686]
[1727164800343,1.78065944,2652.3,2652.2,5.21165686]
[1727164800670,3.72368213,2652.3,2652.2,5.21165686]
[1727164801180,5.30240706,2652.3,2652.2,5.21165686]
[1727164801881,4.47330706,2652.3,2652.2,5.21165686]
[1727164802241,3.18682611,2652.3,2652.2,5.21165686]
[1727164802882,3.18682611,2652.3,2652.2,3.77045]
[1727164803043,4.86831323,2652.3,2652.2,5.21165686]
[1727164803250,4.47356533,2652.3,2652.2,5.21165686]
[1727164803577,2.89355576,2652.3,2652.2,5.21165686]
[1727164803783,1.60707481,2652.3,2652.2,5.21165686]
[1727164804195,1.60707481,2652.3,2652.1,3.77059]
[1727164804196,2.89355576,2652.3,2652.1,3.77059]
[1727164804496,0.7976,2652.1,2651.7,3.77106]
[1727164804651,0.7976,2651.8,2651.7,3.77106]
[1727164804992,3.98446505,2651.8,2651.7,3.77106]
[1727164805165,5.270946,2651.8,2651.7,3.77106]
[1727164805366,5.270946,2651.8,2651.6,3.77129]
[1727164805551,5.270946,2651.8,2651.6,3.77122]
[1727164805552,4.473346,2651.7,2651.6,3.77122]
[1727164805983,3.18686505,2651.7,2651.6,3.77122]
[1727164806187,4.473346,2651.7,2651.6,3.77122]
[1727164807188,2.86627119,2651.7,2651.6,3.77122]
[1727164807376,3.18757377,2651.7,2651.6,3.77122]
[1727164807881,4.47405472,2651.7,2651.6,3.77122]
[1727164808489,2.89426448,2651.7,2651.5,3.77132]
[1727164808711,4.87026488,2651.6,2651.5,3.77132]
[1727164809396,0.7976,2651.5,2651.3,3.77159]
[1727164809604,0.7976,2651.5,2651.3,1.44120686]
[1727164809605,3.18891821,2651.4,2651.3,1.44120686]
[1727164809792,4.47539916,2651.4,2651.3,1.44120686]
[1727164810485,0.7976,2651.3,2651.1,3.77191]
[1727164810806,3.18875181,2651.2,2651.1,5.21321686]
[1727164811014,4.47279168,2651.2,2651.0,3.77208]
[1727164811313,4.47279168,2651.1,2651.0,5.21327686]
[1727164811469,4.86799611,2651.1,2651.0,1.44120686]
[1727164811807,5.66559611,2651.1,2650.8,5.25200016]
[1727164812001,1.18532796,2650.9,2650.8,5.25200016]
[1727164812300,1.82671329,2650.9,2650.8,5.25200016]
[1727164812603,2.78879128,2650.9,2650.8,5.25200016]
[1727164812808,1.60346332,2650.9,2650.8,5.25200016]
[1727164812972,2.78851054,2650.9,2650.8,5.25200016]
[1727164814492,2.39323267,2650.9,2650.8,5.25200016]
[1727164814812,2.39323267,2650.9,2650.8,1.47957016]
[1727164815020,2.78851054,2650.9,2650.8,0.0383633]
[1727164815176,5.78841095,2650.9,2650.8,0.0383633]
[1727164815694,6.18354716,2650.9,2650.8,0.0383633]
[1727164816006,4.20797367,2650.9,2650.8,0.0383633]
[1727164816219,6.18142485,2650.9,2650.8,0.0383633]
[1727164816505,5.785948,2650.9,2650.8,0.0383633]
[1727164816705,5.78344386,2650.9,2650.8,0.0383633]
[1727164817026,5.26678908,2650.9,2650.8,0.0383633]
[1727164817221,3.59010891,2650.9,2650.8,0.0383633]
[1727164817385,3.59010891,2650.9,2650.8,3.8108033]
[1727164817585,2.78420891,2650.9,2650.8,3.8108033]
[1727164817986,2.78420891,2651.0,2650.8,0.0383633]
[1727164818241,2.78420891,2651.0,2650.9,5.21350686]
[1727164820023,2.38966829,2651.0,2650.9,5.21350686]
[1727164820887,1.60095918,2651.0,2650.9,3.7723]
[1727164821085,0.96057551,2651.0,2650.9,5.21350686]
[1727164821288,0.64038367,2651.0,2650.9,5.21350686]
[1727164821589,0.78870911,2651.1,2651.0,3.77216]
[1727164822191,1.74880166,2651.1,2651.0,3.77216]
[1727164823084,2.38886336,2651.1,2651.0,3.77216]
[1727164823288,1.74880166,2651.1,2651.0,3.77216]
[1727164823512,0.96009255,2651.1,2651.0,3.77216]
[1727164823736,0.78870911,2651.3,2651.1,3.77201]
[1727164823903,0.78870911,2651.4,2651.3,3.77173]
[1727164824222,2.38879824,2651.4,2651.3,5.21293686]
[1727164825111,2.38884972,2651.4,2651.3,5.21293686]
[1727164825498,0.64005624,2651.4,2651.3,5.21293686]
[1727164826346,0.64002833,2651.4,2651.3,5.21293686]
[1727164829822,1.60018054,2651.4,2651.2,5.21299686]
[1727164830005,0.7648,2651.2,2651.1,3.77193]
[1727164830211,3.15379462,2651.2,2651.1,3.77193]
[1727164831241,1.40497955,2651.2,2651.1,3.77193]
[1727164831649,0.64017955,2651.2,2651.1,3.77193]
[1727164831817,0.78870491,2651.4,2651.2,3.77187]
[1727164832015,2.38909619,2651.4,2651.3,3.77173]
[1727164833563,0.64015651,2651.4,2651.3,3.77173]
[1727164833717,0.78870491,2651.5,2651.4,3.77159]
[1727164833917,2.38923144,2651.6,2651.5,3.77145]
[1727164834111,2.38918744,2651.6,2651.5,3.77145]
[1727164834750,0.78870491,2651.7,2651.6,3.7713]
[1727164834979,0.39448424,2651.8,2651.7,3.77116]
[1727164835420,0.78870491,2652.0,2651.9,3.77088]
[1727164835617,0.78870491,2652.0,2651.9,5.21208686]
[1727164835841,2.14353807,2652.0,2651.9,3.77088]
[1727164836122,2.58874142,2652.0,2651.9,3.77088]
[1727164836448,5.86446787,2652.0,2651.8,3.771]
[1727164836658,2.78385371,2651.9,2651.8,3.771]
[1727164838635,2.88130048,2651.9,2651.8,3.771]
[1727164838844,2.78405362,2651.9,2651.8,5.21220686]
[1727164839230,1.60048056,2651.9,2651.8,5.21220686]
[1727164839560,1.57797433,2652.1,2651.8,5.21220686]
[1727164839561,1.18357306,2652.1,2651.9,3.77088]
[1727164839764,1.18354689,2652.1,2652.0,5.21193686]
[1727164839947,2.78454537,2652.1,2652.0,5.21193686]
[1727164840343,2.14415099,2652.1,2652.0,5.21193686]
[1727164840526,2.78454537,2652.1,2652.0,5.21193686]
[1727164840726,3.17901696,2652.1,2652.0,3.77073]
[1727164841058,2.78461963,2652.1,2652.0,3.77073]
[1727164842727,2.78475443,2652.1,2652.0,3.77073]
[1727164842951,2.78474571,2652.1,2652.0,3.77073]
[1727164843324,2.98319138,2652.2,2652.0,3.77073]
[1727164843481,4.4600163,2652.1,2652.0,3.77073]
[1727164843641,2.88204197,2652.1,2652.0,3.77073]
[1727164844345,2.21839138,2652.1,2652.0,3.77073]
[1727164844552,2.88204197,2652.1,2652.0,3.77073]
[1727164844781,2.98319138,2652.2,2652.0,3.77073]
[1727164844939,2.7849013,2652.1,2652.0,3.77073]
[1727164845137,2.7849013,2652.1,2652.0,5.21193686]
[1727164845353,2.39020961,2652.1,2652.0,6.87561655]
[1727164845638,0.64041705,2652.1,2652.0,6.87561655]
[1727164845971,1.18385867,2652.3,2652.1,3.77059]
[1727164845972,0.78916698,2652.3,2652.1,3.77059]
[1727164846170,0.78916698,2652.3,2652.2,1.44120686]
[1727164846346,0.78916698,2652.3,2652.2,6.8891369]
[1727164846667,1.74998192,2652.3,2652.2,8.1290179]
[1727164846857,0.78916698,2652.3,2652.2,8.1290179]
[1727164847085,1.74998192,2652.3,2652.2,8.1290179]
[1727164847792,1.74998192,2652.3,2652.2,3.1186869]
[1727164848759,1.74998192,2652.3,2652.2,6.8891369]
[1727164849887,1.60135823,2652.3,2652.2,6.8891369]
[1727164850096,1.74998192,2652.3,2652.2,6.8891369]
[1727164850276,1.60135823,2652.3,2652.2,6.8891369]
[1727164850469,1.60087878,2652.3,2652.2,8.12146856]
[1727164850817,0.96052727,2652.3,2652.2,8.12146856]
[1727164850983,0.78916698,2652.4,2652.2,8.12146856]
[1727164851379,0.78916698,2652.4,2652.3,4.53571]
[1727164851380,0.64035151,2652.4,2652.3,4.53571]
[1727164851570,0.78916698,2652.5,2652.4,3.77017]
[1727164851772,0.64018532,2652.5,2652.4,6.8888569]
[1727164852171,0.78916698,2652.6,2652.4,6.8888569]
[1727164852859,1.74919515,2652.5,2652.4,3.1186869]
[1727164853260,2.38919533,2652.5,2652.4,3.59793478]
[1727164853460,1.74919515,2652.5,2652.4,7.36810478]
[1727164853879,0.64000018,2652.5,2652.4,7.36810478]
[1727164854258,0.6397777,2652.5,2652.4,3.59793478]
[1727164855074,0.78916698,2652.6,2652.4,3.59793478]
[1727164855897,1.74863638,2652.6,2652.4,3.59793478]
[1727164856099,0.78916698,2652.6,2652.4,3.59793478]
[1727164856820,1.74847787,2652.6,2652.4,3.59793478]
[1727164857127,0.78916698,2652.6,2652.4,3.59793478]
[1727164857293,0.8227,2652.6,2652.1,0.7654]
[1727164857502,0.8227,2652.3,2651.7,3.1186869]
[1727164857722,4.55962698,2652.2,2651.7,3.1186869]
[1727164858014,4.59351,2652.0,2651.5,3.1186869]
[1727164858216,0.63969907,2651.9,2651.5,4.23809559]
[1727164858512,0.63969907,2651.9,2651.7,3.1186869]
[1727164858820,0.63969907,2651.9,2651.5,3.1186869]
[1727164858994,2.3884442,2651.9,2651.5,3.1186869]
[1727164859192,1.59938823,2651.8,2651.5,3.1186869]
[1727164859381,4.56005698,2651.9,2651.5,3.1186869]
[1727164859586,1.59950963,2651.8,2651.5,3.1186869]
[1727164859793,4.56005698,2651.9,2651.5,3.1186869]
[1727164859794,0.78916698,2651.9,2651.5,3.1186869]
[1727164860006,2.38865921,2651.9,2651.5,3.1186869]